bitfinex/quotes_SOLUSD_20241116
["timestamp","ask_amount","ask_price","bid_price","bid_amount"]
[1731794989414,8.99046795,216.49,216.42,21.8091]
[1731794990037,8.99046795,216.49,216.42,30.79956795]
[1731794990225,4.6182,216.53,216.42,21.8091]
[1731794990226,8.99046795,216.45,216.42,21.8091]
[1731794991611,13.61046795,216.45,216.42,21.8091]
[1731794992118,8.99046795,216.43,216.41,15.0]
[1731794993634,8.99046795,216.45,216.41,15.0]
[1731794994432,8.99046795,216.43,216.41,15.0]
[1731794996224,4.6206,216.42,216.41,15.0]
[1731795000141,8.99046795,216.45,216.41,15.0]
[1731795000340,8.99046795,216.42,216.41,15.0]
[1731795000639,8.99046795,216.44,216.41,15.0]
[1731795001836,13.61076795,216.44,216.41,15.0]
[1731795003523,8.99046795,216.46,216.41,15.0]
[1731795003736,13.61036795,216.46,216.41,15.0]
[1731795004118,8.99046795,216.46,216.41,15.0]
[1731795005841,4.6195,216.47,216.41,15.0]
[1731795006043,13.60996795,216.47,216.41,15.0]
[1731795006250,8.99046795,216.46,216.41,15.0]
[1731795006944,4.62,216.45,216.41,15.0]
[1731795008036,13.60996795,216.47,216.41,15.0]
[1731795008530,4.6182,216.53,216.42,8.99046795]
[1731795008732,4.6182,216.53,216.41,15.0]
[1731795008733,8.99046795,216.5,216.43,8.99046795]
[1731795009133,8.99046795,216.5,216.41,15.0]
[1731795009339,8.99046795,216.51,216.43,8.99046795]
[1731795009531,8.99046795,216.51,216.41,15.0]
[1731795009532,8.99046795,216.51,216.44,6.2622]
[1731795009741,4.6189,216.5,216.45,16.2502]
[1731795010824,8.99046795,216.52,216.45,16.2502]
[1731795011030,4.6187,216.51,216.45,16.2502]
[1731795011245,6.45687099,216.57,216.45,16.2502]
[1731795011436,8.99046795,216.51,216.45,16.2502]
[1731795012128,8.99046795,216.52,216.45,25.24066795]
[1731795012328,8.99046795,216.53,216.45,16.2502]
[1731795012825,4.6185,216.52,216.46,8.99046795]
[1731795013626,13.60786795,216.57,216.45,16.2502]
[1731795013829,13.60786795,216.57,216.49,8.99046795]
[1731795014029,8.99046795,216.56,216.48,8.99046795]
[1731795014254,4.6174,216.57,216.48,8.99046795]
[1731795014549,4.6174,216.57,216.49,8.99046795]
[1731795014550,8.99046795,216.56,216.49,8.99046795]
[1731795014753,4.6178,216.55,216.49,8.99046795]
[1731795016354,4.6174,216.57,216.49,8.99046795]
[1731795016559,8.99046795,216.56,216.49,8.99046795]
[1731795016736,4.6174,216.57,216.49,8.99046795]
[1731795016737,13.60786795,216.57,216.49,8.99046795]
[1731795017550,4.6174,216.57,216.46,20.0]
[1731795017757,13.60786795,216.57,216.5,8.99046795]
[1731795018855,4.6174,216.57,216.51,8.99046795]
[1731795021563,4.6174,216.57,216.5,8.99046795]
[1731795021735,13.60786795,216.57,216.5,8.99046795]
[1731795024165,4.6174,216.57,216.51,8.99046795]
[1731795024333,4.6171,216.59,216.52,8.99046795]
[1731795024538,8.99046795,216.61,216.54,8.99046795]
[1731795026838,8.99046795,216.63,216.53,15.4849]
[1731795027244,8.99046795,216.63,216.56,8.99046795]
[1731795027756,8.99046795,216.64,216.57,8.99046795]
[1731795027964,4.6151,216.68,216.53,15.4849]
[1731795027965,4.6151,216.68,216.59,8.99046795]
[1731795028270,8.99046795,216.67,216.59,8.99046795]
[1731795029142,4.6155,216.66,216.59,8.99046795]
[1731795029639,4.6155,216.66,216.6,8.99046795]
[1731795030444,4.6155,216.66,216.6,30.66296795]
[1731795030649,11.5368,216.7,216.61,8.99046795]
[1731795030840,23.0707,216.73,216.61,8.99046795]
[1731795030841,23.776884,216.69,216.61,8.99046795]
[1731795031060,8.99046795,216.68,216.61,8.99046795]
[1731795031358,8.99046795,216.69,216.61,8.99046795]
[1731795032261,8.99046795,216.66,216.6,21.6725]
[1731795033156,8.99046795,216.67,216.6,30.66296795]
[1731795033989,4.6155,216.66,216.6,30.66296795]
[1731795036266,8.99046795,216.61,216.55,21.6725]
[1731795036452,8.99046795,216.6,216.55,21.6725]
[1731795037842,8.99046795,216.61,216.55,21.6725]
[1731795039072,13.60706795,216.61,216.55,21.6725]
[1731795043279,8.99046795,216.62,216.55,30.66296795]
[1731795044469,13.60676795,216.63,216.56,8.99046795]
[1731795044773,4.6163,216.63,216.57,8.99046795]
[1731795045377,13.60676795,216.63,216.56,8.99046795]
[1731795045566,8.99046795,216.59,216.55,21.6725]
[1731795045769,8.99046795,216.61,216.55,21.6725]
[1731795046270,8.99046795,216.62,216.55,30.66296795]
[1731795048377,8.99046795,216.63,216.56,8.99046795]
[1731795049551,13.60676795,216.63,216.6,0.29126784]
[1731795049954,13.60666795,216.63,216.56,8.99046795]
[1731795050158,13.60666795,216.63,216.55,21.6725]
[1731795050159,4.6162,216.63,216.55,21.6725]
[1731795050376,4.6162,216.63,216.57,8.99046795]
[1731795052176,8.99046795,216.63,216.57,8.99046795]
[1731795052758,16.1529,216.68,216.57,8.99046795]
[1731795052984,8.99046795,216.64,216.57,8.99046795]
[1731795053162,8.99046795,216.65,216.58,8.99046795]
[1731795054760,4.6159,216.64,216.58,8.99046795]
[1731795055270,8.99046795,216.62,216.55,21.6725]
[1731795055475,8.99046795,216.62,216.55,30.66296795]
[1731795056258,13.60676795,216.63,216.56,8.99046795]
[1731795057265,13.60676795,216.63,216.57,8.99046795]
[1731795058567,13.60676795,216.63,216.55,21.6725]
[1731795058772,13.60676795,216.63,216.56,8.99046795]
[1731795061559,8.99046795,216.64,216.57,8.99046795]
[1731795062486,4.6144,216.71,216.63,8.99046795]
[1731795062689,13.60486795,216.71,216.64,8.99046795]
[1731795062869,8.99046795,216.65,216.61,16.2224]
[1731795063482,8.99046795,216.66,216.61,16.2224]
[1731795064077,8.99046795,216.66,216.61,0.29126784]
[1731795064685,13.60616795,216.66,216.61,0.29126784]
[1731795065068,4.6142,216.72,216.63,24.73236795]
[1731795065267,8.99046795,216.69,216.63,15.7419]
[1731795065475,8.99046795,216.68,216.63,15.7419]
[1731795065971,8.99046795,216.69,216.63,15.7419]
[1731795066592,4.6151,216.68,216.63,15.7419]
[1731795066978,13.60556795,216.68,216.63,15.7419]
[1731795070469,8.99046795,216.69,216.63,15.7419]
[1731795070689,8.99046795,216.71,216.63,24.73236795]
[1731795070985,8.99046795,216.69,216.63,15.7419]
[1731795072199,4.6151,216.68,216.63,15.7419]
[1731795073899,8.99046795,216.68,216.63,15.7419]
[1731795075082,13.60556795,216.68,216.63,15.7419]
[1731795076071,8.99046795,216.64,216.61,0.29126784]
[1731795076266,8.99046795,216.62,216.61,0.29126784]
[1731795078200,8.99046795,216.63,216.61,0.29126784]
[1731795078495,7.24289751,216.69,216.61,0.29126784]
[1731795078672,8.99046795,216.64,216.61,0.29126784]
[1731795079197,8.99046795,216.63,216.61,0.29126784]
[1731795080010,4.616,216.64,216.61,0.29126784]
[1731795080183,8.99046795,216.63,216.61,0.29126784]
[1731795081587,8.99046795,216.62,216.61,0.29126784]
[1731795086628,32.76735195,216.62,216.61,0.29126784]
[1731795091118,11.85909751,216.63,216.61,0.29126784]
[1731795091330,4.6162,216.63,216.61,0.29126784]
[1731795091530,13.60666795,216.63,216.61,0.29126784]
[1731795092209,4.6158,216.65,216.61,0.29126784]
[1731795092400,8.99046795,216.64,216.61,0.29126784]
[1731795093130,13.60626795,216.65,216.61,0.29126784]
[1731795097701,8.99046795,216.66,216.61,0.29126784]
[1731795098802,4.6157,216.65,216.61,0.29126784]
[1731795100678,16.1514,216.7,216.61,0.29126784]
[1731795100901,7.24289751,216.72,216.64,8.99046795]
[1731795101105,8.99046795,216.71,216.64,8.99046795]
[1731795101883,13.60486795,216.71,216.64,8.99046795]
[1731795102084,4.6144,216.71,216.65,8.99046795]
[1731795102683,13.60466795,216.72,216.65,8.99046795]
[1731795103477,4.6142,216.72,216.65,8.99046795]
[1731795104099,13.60466795,216.72,216.65,8.99046795]
[1731795105078,13.60466795,216.72,216.64,8.99046795]
[1731795109094,13.60466795,216.72,216.69,0.29126784]
[1731795110012,8.99046795,216.7,216.69,0.29126784]
[1731795110190,68.72922375,216.7,216.69,0.29126784]
[1731795112098,73.34382375,216.7,216.59,6.0013]
[1731795112298,73.34382375,216.7,216.56,15.9801]
[1731795112299,23.776884,216.59,216.56,15.9801]
[1731795112488,23.776884,216.59,216.54,6.2783]
[1731795112489,8.99046795,216.57,216.54,6.2783]
[1731795112701,8.99046795,216.55,216.54,6.2783]
[1731795118722,8.99046795,216.56,216.54,6.2783]
[1731795121617,8.99046795,216.56,216.51,15.9801]
[1731795123107,8.99046795,216.55,216.51,15.9801]
[1731795123503,8.99046795,216.54,216.51,15.9801]
[1731795124052,4.6172,216.58,216.51,15.9801]
[1731795124402,4.6172,216.58,216.51,24.97056795]
[1731795124599,13.60766795,216.58,216.51,24.97056795]
[1731795125633,4.6172,216.58,216.52,8.99046795]
[1731795127013,8.99046795,216.59,216.52,8.99046795]
[1731795128622,11.5398,216.65,216.51,15.9801]
[1731795128623,8.99046795,216.61,216.54,8.99046795]
[1731795128803,8.99046795,216.59,216.52,8.99046795]
[1731795129008,8.99046795,216.55,216.51,15.9801]
[1731795129317,8.99046795,216.54,216.51,15.9801]
[1731795129504,8.99046795,216.55,216.51,15.9801]
[1731795130335,8.99046795,216.56,216.51,15.9801]
[1731795131614,8.99046795,216.57,216.51,15.9801]
[1731795132531,23.776884,216.63,216.54,0.18118043]
[1731795132734,8.99046795,216.6,216.54,0.18118043]
[1731795132908,8.99046795,216.59,216.54,0.18118043]
[1731795133109,23.776884,216.63,216.54,0.18118043]
[1731795133310,8.99046795,216.59,216.54,0.18118043]
[1731795133518,8.99046795,216.57,216.54,0.18118043]
[1731795135013,8.99046795,216.58,216.54,0.18118043]
[1731795135823,23.776884,216.6,216.54,0.18118043]
[1731795136033,32.76735195,216.6,216.54,0.18118043]
[1731795136420,8.99046795,216.56,216.54,0.18118043]
[1731795137239,13.60796795,216.57,216.54,0.18118043]
[1731795137831,8.99046795,216.56,216.54,0.18118043]
[1731795138313,4.617,216.59,216.54,0.18118043]
[1731795138632,32.76735195,216.55,216.54,0.18118043]
[1731795140439,37.38515195,216.55,216.54,0.18118043]
[1731795144119,28.394684,216.55,216.54,0.18118043]
[1731795144320,37.38515195,216.55,216.54,0.18118043]
[1731795149018,4.6163,216.62,216.54,0.18118043]
[1731795149237,8.99046795,216.59,216.54,0.18118043]
[1731795149445,13.60676795,216.62,216.54,24.90844838]
[1731795150951,23.776884,216.61,216.54,24.90844838]
[1731795151243,4.6161,216.63,216.56,8.99046795]
[1731795151945,13.60636795,216.65,216.58,8.99046795]
[1731795152623,4.6159,216.65,216.58,8.99046795]
[1731795154351,4.6159,216.65,216.59,22.3166]
[1731795154655,8.99046795,216.65,216.59,22.3166]
[1731795154950,8.99046795,216.64,216.59,22.3166]
[1731795156431,8.99046795,216.63,216.59,22.3166]
[1731795157736,13.60676795,216.63,216.59,22.3166]
[1731795158134,8.99046795,216.62,216.59,22.3166]
[1731795161641,8.99046795,216.63,216.59,22.3166]
[1731795161951,4.6151,216.68,216.6,8.99046795]
[1731795163448,8.99046795,216.67,216.6,8.99046795]
[1731795164034,13.60586795,216.67,216.6,8.99046795]
[1731795164930,23.776884,216.72,216.6,8.99046795]
[1731795165138,8.99046795,216.68,216.6,8.99046795]
[1731795165333,8.99046795,216.69,216.61,8.99046795]
[1731795165536,23.776884,216.68,216.61,8.99046795]
[1731795166044,8.99046795,216.69,216.62,8.99046795]
[1731795166947,8.99046795,216.69,216.59,22.3166]
[1731795166948,28.391984,216.68,216.59,22.3166]
[1731795167141,28.391984,216.68,216.61,8.99046795]
[1731795167542,4.6151,216.68,216.61,8.99046795]
[1731795169849,4.6151,216.68,216.66,0.18118043]
[1731795170346,4.6151,216.68,216.61,8.99046795]
[1731795170862,13.60506795,216.71,216.63,8.99046795]
[1731795171071,8.99046795,216.73,216.65,8.99046795]
[1731795171355,8.99046795,216.73,216.66,15.9905]
[1731795172144,13.60446795,216.73,216.66,15.9905]
[1731795173442,28.390184,216.76,216.67,15.32626795]
[1731795173756,13.60376795,216.76,216.69,8.99046795]
[1731795173957,4.6133,216.76,216.69,8.99046795]
[1731795174344,13.60356795,216.78,216.69,8.99046795]
[1731795175938,4.6121,216.82,216.74,24.98096795]
[1731795176139,13.60256795,216.82,216.74,24.98096795]
[1731795177948,13.60256795,216.82,216.75,6.3358]
[1731795179763,13.60256795,216.82,216.74,24.98096795]
[1731795179764,8.99046795,216.76,216.74,15.9905]
[1731795180975,13.60386795,216.76,216.74,15.9905]
[1731795181565,23.776884,216.76,216.74,15.9905]
[1731795182454,8.99046795,216.76,216.74,15.9905]
[1731795183051,32.76735195,216.77,216.74,15.9905]
[1731795183255,37.38055195,216.77,216.74,15.9905]
[1731795186072,8.99046795,216.79,216.74,15.9905]
[1731795186273,8.99046795,216.82,216.74,24.98096795]
[1731795187982,23.776884,216.81,216.74,24.98096795]
[1731795188850,28.389184,216.81,216.74,24.98096795]
[1731795191267,23.776884,216.81,216.74,24.98096795]
[1731795191459,8.99046795,216.82,216.74,24.98096795]
[1731795191654,4.6106,216.89,216.77,6.528]
[1731795191870,23.776884,216.83,216.77,15.51846795]
[1731795192261,23.776884,216.84,216.77,15.51846795]
[1731795192957,8.99046795,216.85,216.77,15.51846795]
[1731795197886,8.99046795,216.83,216.77,6.528]
[1731795198085,8.99046795,216.81,216.77,6.528]
[1731795198464,8.99046795,216.82,216.77,6.528]
[1731795199057,8.99046795,216.83,216.77,6.528]
[1731795199259,8.99046795,216.83,216.82,0.18118043]
[1731795203295,32.76735195,216.83,216.82,0.18118043]
[1731795210498,68.72922375,216.83,216.82,0.18118043]
[1731795211085,32.76735195,216.83,216.82,0.18118043]
[1731795211806,37.37925195,216.83,216.82,0.18118043]
[1731795214501,4.6123,216.81,216.74,15.9905]
[1731795214709,8.99046795,216.77,216.74,15.9905]
[1731795214890,8.99046795,216.78,216.74,15.9905]
[1731795216790,8.99046795,216.76,216.74,15.9905]
[1731795220492,8.99046795,216.75,216.74,15.9905]
[1731795222499,8.99046795,216.75,216.72,6.5054]
[1731795222812,8.99046795,216.74,216.72,6.5054]
[1731795223813,8.99046795,216.75,216.72,6.5054]
[1731795225314,8.99046795,216.75,216.69,16.114]
[1731795225513,4.6136,216.75,216.69,16.114]
[1731795225826,8.99046795,216.7,216.69,16.114]
[1731795225992,23.776884,216.77,216.69,16.114]
[1731795225993,8.99046795,216.71,216.69,16.114]
[1731795230110,8.99046795,216.72,216.69,16.114]
[1731795230329,8.99046795,216.75,216.69,16.114]
[1731795232116,13.60386795,216.76,216.69,16.114]
[1731795235823,8.99046795,216.76,216.69,25.10446795]
[1731795237249,13.60386795,216.76,216.69,25.10446795]
[1731795237443,13.60386795,216.76,216.69,16.114]
[1731795238229,8.99046795,216.75,216.69,16.114]
[1731795240250,8.99046795,216.72,216.69,16.114]
[1731795240473,8.99046795,216.74,216.69,16.114]
[1731795241055,35.9618718,216.81,216.69,16.114]
[1731795241056,8.99046795,216.72,216.69,16.114]
[1731795241243,8.99046795,216.7,216.65,6.0238]
[1731795241453,8.99046795,216.68,216.65,6.0238]
[1731795243356,8.99046795,216.66,216.65,6.0238]
[1731795243857,8.99046795,216.66,216.64,16.0615]
[1731795244048,8.99046795,216.67,216.64,16.0615]
[1731795244977,8.99046795,216.65,216.6,21.5999]
[1731795245442,8.99046795,216.66,216.6,21.5999]
[1731795246359,13.60596795,216.66,216.6,21.5999]
[1731795247578,8.99046795,216.61,216.56,5.91688888]
[1731795247867,8.99046795,216.61,216.55,15.4464]
[1731795250559,8.99046795,216.59,216.55,15.4464]
[1731795255271,11.5377,216.68,216.55,15.4464]
[1731795255579,8.99046795,216.64,216.56,8.99046795]
[1731795256263,8.99046795,216.64,216.57,8.99046795]
[1731795256566,13.60626795,216.65,216.57,8.99046795]
[1731795256975,8.99046795,216.66,216.59,8.99046795]
[1731795257475,13.60586795,216.67,216.59,8.99046795]
[1731795257778,8.99046795,216.65,216.58,8.99046795]
[1731795258556,4.6146,216.7,216.6,8.99046795]
[1731795258804,8.99046795,216.67,216.6,8.99046795]
[1731795259204,8.99046795,216.67,216.59,8.99046795]
[1731795259472,8.99046795,216.66,216.59,8.99046795]
[1731795261871,8.99046795,216.64,216.57,8.99046795]
[1731795262060,8.99046795,216.64,216.55,24.43686795]
[1731795263084,4.6157,216.66,216.55,24.43686795]
[1731795263085,8.99046795,216.6,216.55,15.4464]
[1731795263372,8.99046795,216.61,216.55,15.4464]
[1731795268375,8.99046795,216.62,216.55,24.43686795]
[1731795269477,13.60676795,216.62,216.55,24.43686795]
[1731795272467,13.60676795,216.62,216.55,15.4464]
[1731795272779,13.60676795,216.62,216.55,24.43686795]
[1731795273279,13.60676795,216.62,216.55,15.4464]
[1731795274479,23.776884,216.65,216.55,15.4464]
[1731795274657,23.776884,216.63,216.56,8.99046795]
[1731795274976,4.6159,216.64,216.56,8.99046795]
[1731795276660,7.24289751,216.74,216.55,15.4464]
[1731795276661,28.391484,216.7,216.58,8.99046795]
[1731795276874,23.776884,216.66,216.58,8.99046795]
[1731795277364,8.99046795,216.65,216.58,8.99046795]
[1731795279257,37.38285195,216.66,216.58,8.99046795]
[1731795282344,4.6153,216.68,216.6,8.99046795]
[1731795282645,8.99046795,216.68,216.62,15.278]
[1731795283822,8.99046795,216.7,216.62,24.26846795]
[1731795284021,8.99046795,216.71,216.62,24.26846795]
[1731795284244,4.6136,216.75,216.64,8.99046795]
[1731795284556,8.99046795,216.71,216.64,8.99046795]
[1731795285746,8.99046795,216.73,216.64,8.99046795]
[1731795286748,14.48579502,216.8,216.68,8.99046795]
[1731795286749,23.776884,216.77,216.68,8.99046795]
[1731795287049,8.99046795,216.77,216.69,16.1111]
[1731795287341,7.24289751,216.82,216.7,8.99046795]
[1731795287342,4.6126,216.8,216.7,8.99046795]
[1731795287542,8.99046795,216.79,216.7,8.99046795]
[1731795287751,8.99046795,216.76,216.69,25.10156795]
[1731795288323,8.99046795,216.78,216.69,25.10156795]
[1731795289336,8.99046795,216.78,216.71,8.99046795]
[1731795290654,8.99046795,216.83,216.76,22.5335]
[1731795292057,23.776884,216.82,216.76,22.5335]
[1731795296452,4.6106,216.89,216.77,8.99046795]
[1731795296631,23.776884,216.85,216.77,8.99046795]
[1731795299055,23.776884,216.85,216.79,8.99046795]
[1731795299248,23.776884,216.85,216.78,8.99046795]
[1731795300035,8.99046795,216.86,216.78,8.99046795]
[1731795300237,23.776884,216.85,216.78,8.99046795]
[1731795300743,23.776884,216.87,216.8,8.99046795]
[1731795302049,23.776884,216.88,216.8,8.99046795]
[1731795304861,23.776884,216.88,216.82,8.99046795]
[1731795305452,23.776884,216.95,216.84,15.11816795]
[1731795305759,8.99046795,216.93,216.86,8.99046795]
[1731795306567,4.6096,216.94,216.86,8.99046795]
[1731795306941,8.99046795,216.91,216.84,6.1277]
[1731795307147,8.99046795,216.92,216.85,8.99046795]
[1731795308566,8.99046795,216.92,216.84,15.11816795]
[1731795308973,23.776884,216.98,216.84,15.11816795]
[1731795309260,8.99046795,216.92,216.84,15.11816795]
[1731795310769,32.76735195,216.95,216.86,8.99046795]
[1731795312872,32.76735195,216.95,216.82,0.1]
[1731795312873,4.6078,217.02,216.89,6.1277]
[1731795313047,8.99046795,216.98,216.9,8.99046795]
[1731795313463,8.99046795,216.96,216.89,6.1277]
[1731795318754,28.384484,217.03,216.9,15.344]
[1731795318963,8.99046795,216.97,216.9,15.344]
[1731795319271,8.99046795,216.96,216.9,15.344]
[1731795320378,8.99046795,216.97,216.9,15.344]
[1731795322075,8.99046795,216.96,216.9,15.344]
[1731795322659,8.99046795,216.94,216.9,15.344]
[1731795324372,13.59986795,216.95,216.9,15.344]
[1731795329380,11.5204,217.01,216.9,15.344]
[1731795329562,23.776884,217.0,216.9,24.33446795]
[1731795329756,8.99046795,216.95,216.9,15.344]
[1731795332396,8.99046795,216.96,216.9,15.344]
[1731795332687,8.99046795,216.94,216.9,15.344]
[1731795334982,0.29084935,216.92,216.9,15.344]
[1731795341372,13.8913173,216.92,216.9,15.344]
[1731795341591,13.8913173,216.92,216.85,16.4829]
[1731795342787,8.99046795,216.9,216.85,16.4829]
[1731795343396,8.99046795,216.89,216.85,16.4829]
[1731795345198,8.99046795,216.88,216.85,16.4829]
[1731795349102,8.99046795,216.91,216.85,16.4829]
[1731795350508,0.29084935,216.92,216.85,25.47336795]
[1731795352401,0.29084935,216.92,216.87,8.99046795]
[1731795358990,0.29084935,216.92,216.86,9.18414257]
[1731795363012,0.29084935,216.92,216.85,16.4829]
[1731795365106,8.99046795,216.89,216.85,16.4829]
[1731795367214,8.99046795,216.9,216.85,16.4829]
[1731795367418,8.99046795,216.88,216.85,16.4829]
[1731795367910,8.99046795,216.88,216.84,6.2914]
[1731795369996,8.99046795,216.88,216.8,16.4833]
[1731795370193,8.99046795,216.88,216.8,25.47376795]
[1731795370788,13.60126795,216.88,216.8,25.47376795]
[1731795370992,8.99046795,216.88,216.8,25.47376795]
[1731795371515,8.99046795,216.9,216.82,8.99046795]
[1731795372718,9.2813173,216.92,216.84,8.99046795]
[1731795373387,0.29084935,216.92,216.86,8.99046795]
[1731795373612,0.29084935,216.92,216.86,6.534]
[1731795377122,8.99046795,216.91,216.86,6.534]
[1731795377297,8.99046795,216.91,216.82,8.99046795]
[1731795377499,8.99046795,216.91,216.83,0.09367462]
[1731795378003,8.99046795,216.89,216.82,0.09367462]
[1731795378700,8.99046795,216.89,216.81,6.534]
[1731795382016,0.29084935,216.92,216.86,8.99046795]
[1731795382713,0.29084935,216.92,216.85,0.09367462]
[1731795396435,13.8912173,216.92,216.81,6.534]
[1731795396612,8.99046795,216.9,216.82,8.99046795]
[1731795397029,8.99046795,216.9,216.83,0.09367462]
[1731795398119,8.99046795,216.9,216.81,6.534]
[1731795398328,13.60096795,216.9,216.81,15.52446795]
[1731795399214,8.99046795,216.89,216.81,15.52446795]
[1731795400438,8.99046795,216.89,216.82,8.99046795]
[1731795400625,8.99046795,216.9,216.83,8.99046795]
[1731795401727,8.99046795,216.9,216.82,9.08414257]
[1731795405435,8.99046795,216.9,216.83,8.99046795]
[1731795413237,8.99046795,216.9,216.82,9.08414257]
[1731795413749,8.99046795,216.9,216.83,8.99046795]
[1731795419750,8.99046795,216.84,216.8,16.4833]
[1731795420053,8.99046795,216.84,216.77,8.99046795]
[1731795420435,8.99046795,216.8,216.75,21.4042]
[1731795420638,8.99046795,216.78,216.71,8.99046795]
[1731795420946,8.99046795,216.8,216.74,0.09367462]
[1731795421528,8.99046795,216.81,216.74,8.99046795]
[1731795422146,8.99046795,216.82,216.74,8.99046795]
[1731795422345,8.99046795,216.81,216.74,8.99046795]
[1731795423741,8.99046795,216.85,216.77,8.99046795]
[1731795424556,4.6107,216.89,216.79,8.99046795]
[1731795424737,8.99046795,216.87,216.8,8.99046795]
[1731795425955,24.06773335,216.92,216.83,8.99046795]
[1731795426134,8.99046795,216.91,216.83,8.99046795]
[1731795428844,8.99046795,216.91,216.85,8.99046795]
[1731795429040,4.90084935,216.92,216.85,8.99046795]
[1731795429539,0.29084935,216.92,216.85,8.99046795]
[1731795429742,0.29084935,216.92,216.87,8.99046795]
[1731795434142,0.29084935,216.92,216.85,24.90346795]
[1731795434347,8.99046795,216.9,216.83,6.6438]
[1731795435640,8.99046795,216.91,216.83,15.63426795]
[1731795435961,8.99046795,216.91,216.84,8.99046795]
[1731795436253,13.8913173,216.92,216.84,8.99046795]
[1731795436464,13.8913173,216.92,216.85,8.99046795]
[1731795436465,0.29084935,216.92,216.85,8.99046795]
[1731795438956,8.99046795,216.93,216.85,8.6996186]
[1731795443570,6.3107,216.98,216.87,8.99046795]
[1731795443866,8.99046795,216.95,216.88,8.99046795]
[1731795444049,8.99046795,216.95,216.86,16.1001]
[1731795444248,8.99046795,216.95,216.87,8.99046795]
[1731795444857,8.99046795,216.95,216.86,16.1001]
[1731795445063,8.99046795,216.93,216.86,16.1001]
[1731795445239,4.6087,216.98,216.86,25.09056795]
[1731795445563,8.99046795,216.94,216.86,25.09056795]
[1731795448961,8.99046795,216.96,216.88,8.99046795]
[1731795449666,4.6087,216.98,216.88,8.99046795]
[1731795449874,8.99046795,216.96,216.88,8.99046795]
[1731795450171,8.99046795,216.94,216.88,8.99046795]
[1731795450958,8.99046795,216.94,216.86,16.1001]
[1731795453171,8.99046795,216.92,216.86,16.1001]
[1731795453363,8.99046795,216.9,216.86,16.1001]
[1731795453556,8.99046795,216.89,216.83,6.6438]
[1731795454354,8.99046795,216.9,216.83,6.6438]
[1731795456265,8.99046795,216.89,216.83,6.6438]
[1731795458169,8.99046795,216.9,216.83,6.6438]
[1731795459379,8.99046795,216.9,216.83,15.63426795]
[1731795459873,8.99046795,216.9,216.83,6.6438]
[1731795460451,8.99046795,216.9,216.83,15.63426795]
[1731795462682,8.99046795,216.9,216.83,6.6438]
[1731795463477,13.60086795,216.9,216.83,6.6438]
[1731795463670,8.99046795,216.89,216.83,6.6438]
[1731795464572,8.99046795,216.86,216.81,15.9326]
[1731795464891,8.99046795,216.85,216.81,15.9326]
[1731795465063,8.99046795,216.86,216.81,15.9326]
[1731795465260,8.99046795,216.83,216.78,6.4312]
[1731795466274,4.6115,216.85,216.78,6.4312]
[1731795466481,8.99046795,216.84,216.78,6.4312]
[1731795466665,23.776884,216.89,216.78,6.4312]
[1731795466875,28.387484,216.89,216.8,8.99046795]
[1731795467076,8.99046795,216.88,216.8,8.99046795]
[1731795467271,8.99046795,216.88,216.82,8.99046795]
[1731795467667,8.99046795,216.88,216.79,15.67327462]
[1731795468063,8.99046795,216.88,216.81,8.99046795]
[1731795470197,4.6104,216.9,216.81,8.99046795]
[1731795470370,13.60086795,216.9,216.81,8.99046795]
[1731795471165,13.60086795,216.9,216.79,15.67327462]
[1731795471368,13.60086795,216.9,216.82,8.99046795]
[1731795471580,7.24289751,216.95,216.82,8.99046795]
[1731795471772,8.99046795,216.92,216.84,8.99046795]
[1731795472979,13.60046795,216.92,216.84,8.99046795]
[1731795473902,13.59996795,216.94,216.86,8.99046795]
[1731795478497,11.85219751,216.96,216.86,8.99046795]
[1731795478700,8.99046795,216.95,216.87,22.0108]
[1731795479482,8.99046795,216.93,216.87,22.0108]
[1731795480001,13.60026795,216.93,216.87,22.0108]
[1731795481582,8.99046795,216.94,216.87,22.0108]
[1731795482491,8.99046795,216.92,216.87,22.0108]
[1731795484089,8.99046795,216.92,216.87,15.5796]
[1731795484090,8.99046795,216.9,216.87,15.5796]
[1731795484481,4.6101,216.92,216.83,8.99046795]
[1731795484801,8.99046795,216.91,216.83,8.99046795]
[1731795486601,8.99046795,216.91,216.82,22.3557]
[1731795486602,4.6101,216.92,216.85,8.99046795]
[1731795487100,8.99046795,216.91,216.83,8.99046795]
[1731795489108,4.6101,216.92,216.85,8.99046795]
[1731795489886,4.6097,216.94,216.85,8.99046795]
[1731795490094,13.59976795,216.96,216.88,8.99046795]
[1731795490517,13.59976795,216.96,216.86,8.99046795]
[1731795490518,8.99046795,216.94,216.86,8.99046795]